[Event "3rd VIZAG GM-Open 2022"]
[Site "Visakapatnam"]
[Date "2022.06.13"]
[Round "1.5"]
[White "Nawin M S"]
[Black "Fedorov, Alexei"]
[Result "0-1"]
[ECO "B23"]
[WhiteElo "1714"]
[BlackElo "2529"]
[Annotator "TA"]
[PlyCount "140"]
[EventDate "2022.06.13"]
[EventType "swiss"]
[EventCountry "IND"]
[SourceTitle "playchess.com"]
[Source "ChessBase"]
[SourceQuality "1"]
[TimeControl "5400+30"]

{[%evp 10,139,11,3,18,18,33,9,31,8,7,3,12,-6,-6,-20,-8,-11,-13,-14,-6,0,-9,-13,-11,-95,-9,-106,-108,-108,-105,-93,-99,-100,-100,-123,-115,-122,-125,-120,-115,-116,-121,-114,-120,-120,-120,-117,-124,-113,-31,-42,-37,-41,-37,-29,-34,-127,-10,-8,-8,-11,-4,-12,0,0,0,0,11,8,10,0,0,0,0,-19,-20,-265,-263,-247,-233,-431,-419,-519,-519,-519,-519,-555,-533,-964,-933,-777,-664,-626,-611,-867,-870,-863,-855,-2000,-815,-729,-669,-855,-774,-1014,-1006,-1147,-883,-1970,-1831,-2702,-1739,-2219,-1855,-29981,-29981,-29980,-29973,-29985,-29986,-29989,-29990,-29990,-29988,-29996,-29997,-29997,-29998,-29998,-29999,-29999]} 1. e4 {[%emt 0:00:19]} c5 {[%emt 0:00:04]} 2. Nc3 {[%emt 0:00:59]} a6 {[%emt 0:00:22]} 3. g3 {[%emt 0:00:31]} b5 {[%emt 0:00:14]} 4. Bg2 {[%emt 0:00:14]} Bb7 {[%emt 0:00:05]} 5. d3 {[%emt 0:00:53]} e6 {[%emt 0:02:11]} 6. Nh3 {[%emt 0:02:34]} b4 {[%emt 0:02:12] B23: Closed Sicilian: Lines without g3.} 7. Na4 {[%emt 0:06:23]} d6 {[%emt 0:02:19]} 8. O-O {[%emt 0:03:52] [#]} Nd7 $146 {[%emt 0:00:25] The position is equal.} (8... Bc6 $5 {[%cal Rc6a4]} 9. b3 Nd7 $14) ({Predecessor:} 8... Be7 9. Nf4 Bc6 10. b3 Nf6 11. a3 a5 12. Nb2 Nbd7 13. Nc4 e5 14. Nh5 Nxh5 15. Qxh5 {1-0 (49) Santos Latasa,J (2545)-Silva,L (2276) Porto 2016}) 9. b3 {[%emt 0:02:43]} Ngf6 {[%emt 0:00:28]} 10. f4 {[%emt 0:02:47]} Be7 {[%emt 0:02:35]} 11. f5 {[%emt 0:14:56]} exf5 {[%emt 0:06:18]} 12. Rxf5 {[%emt 0:00:17]} O-O {[%emt 0:03:35]} 13. Rf1 {[%emt 0:05:15]} d5 {[%emt 0:01:58][%cal Rd5e4]} 14. Re1 {[%emt 0:27:21]} dxe4 {[%emt 0:08:33]} 15. dxe4 {[%emt 0:00:22]} Ne5 {[%emt 1:06:41]} 16. Bb2 {[%emt 0:06:07]} Qc7 {[%emt 0:00:00]} 17. Nb6 {[%emt 0:23:27]} Rad8 {[%emt 0:01:00]} (17... Qxb6 $17 18. Bxe5 c4+ 19. Bd4 Bc5 20. Bxc5 Qxc5+ 21. Nf2 Rae8) 18. Qe2 {[%emt 0:00:00]} Qxb6 $17 {[%emt 0:00:00]} 19. Bxe5 {[%emt 0:00:00]} Nd7 {[%emt 0:00:00]} 20. Bf4 {[%emt 0:00:00]} Bf6 {[%emt 0:00:00]} 21. Rad1 {[%emt 0:00:00]} Bd4+ {[%emt 0:00:00]} 22. Kh1 {[%emt 0:00:00]} Rfe8 {[%emt 0:00:00]} 23. Nf2 {[%emt 0:00:00]} Nf6 {[%emt 0:00:00]} 24. Bg5 {[%emt 0:00:00]} h6 {[%emt 0:00:00]} 25. Bxf6 {[%emt 0:00:00]} Qxf6 {[%emt 0:00:00]} 26. Nd3 {[%emt 0:00:00]} Qg5 {[%emt 0:00:00]} 27. Qf3 {[%emt 0:01:31]} Bc3 {[%emt 0:00:00]} 28. Rf1 {[%emt 0:01:10]} Qe7 {[%emt 0:00:00] Active counter play!} ({But not} 28... Bxe4 $6 29. Qxf7+ Kh7 30. Bxe4+ Rxe4 31. h4 $15) 29. Qf5 {[%emt 0:00:54]} g6 {[%emt 0:00:00]} (29... Bd4 $17 30. Rfe1 Qc7) 30. Qxc5 $15 {[%emt 0:01:07]} Bxe4 {[%emt 0:00:00] This bishop pair is nice.} 31. Qxe7 {[%emt 0:00:28]} Bxg2+ {[%emt 0:00:00]} 32. Kxg2 {[%emt 0:00:01]} Rxe7 {[%emt 0:00:00]} 33. Nf4 {[%emt 0:01:05] Inhibits Rd5.} (33. Rf4 $15) 33... Red7 {[%emt 0:00:00]} ({Better is} 33... Rxd1 $17 34. Rxd1 g5) 34. Rxd7 $11 {[%emt 0:00:16]} Rxd7 {[%emt 0:00:00][%mdl 4096] Endgame KRB-KRN} 35. Nd3 {[%emt 0:00:06]} Re7 {[%emt 0:00:00]} 36. Rf4 {[%emt 0:00:15]} a5 {[%emt 0:00:00]} 37. Kf3 {[%emt 0:00:54]} f5 {[%emt 0:00:00]} 38. Rc4 {[%emt 0:00:36]} Kg7 {[%emt 0:00:00]} 39. Rc5 {[%emt 0:00:52]} Bd4 {[%emt 0:01:25]} 40. Rxa5 {[%emt 0:00:18]} Re3+ {[%emt 0:00:18]} 41. Kg2 {[%emt 0:01:25]} Re2+ {[%emt 0:00:10]} 42. Kf1 {[%emt 0:00:29]} Rxc2 {[%emt 0:01:29]} 43. Nxb4 $2 {[%emt 0:00:07] Loses the game.} (43. h3 $11 {and White stays safe.}) 43... Rf2+ $19 {[%emt 0:00:29]} ({Weaker is} 43... Rxh2 44. Rd5 Bc3 45. Nd3 $15) 44. Ke1 {[%emt 0:00:36]} Rxh2 {[%emt 0:00:04] [#] White must now prevent ...Bc3+.} 45. Nd5 {[%emt 0:00:42] Against Bc3+} (45. Kf1) 45... h5 {[%emt 0:00:36][%cal Bh6h5,Bh5h4][%mdl 32]} ({Don't blunder} 45... Bf2+ $2 46. Kf1 $19) 46. b4 {[%emt 0:00:33]} Bf2+ {[%emt 0:00:13]} 47. Kf1 {[%emt 0:00:51]} Bxg3 {[%emt 0:00:10] aiming for ...f4.} 48. Ra3 {[%emt 0:00:34]} h4 {[%emt 0:01:07]} 49. b5 {[%emt 0:00:19]} Rf2+ {[%emt 0:01:27]} 50. Kg1 {[%emt 0:00:07]} Rd2 {[%emt 0:01:27]} 51. Ne3 {[%emt 0:00:17]} Rb2 {[%emt 0:01:09]} 52. Nf1 {[%emt 0:00:47]} Bf2+ {[%emt 0:01:48]} 53. Kh1 {[%emt 0:00:06]} Rxb5 {[%emt 0:00:06]} 54. Rb3 {[%emt 0:00:10]} Ra5 {[%emt 0:00:19]} (54... Rxb3 $142 55. axb3 g5) 55. Rb2 {[%emt 0:00:07]} Bd4 {[%emt 0:00:40]} 56. Rd2 {[%emt 0:00:03]} Be5 {[%emt 0:00:26]} 57. Rc2 {[%emt 0:00:13]} Bf4 {[%emt 0:00:12]} 58. Kg2 {[%emt 0:00:11]} Kh6 {[%emt 0:00:46] [#] ...g5 is the strong threat.} 59. Rf2 {[%emt 0:00:16]} g5 {[%emt 0:00:13] Hoping for ...Ra4.} 60. Rc2 {[%emt 0:00:05]} Kh5 {[%emt 0:00:09] Threatens to win with ...g4.} 61. Kg1 {[%emt 0:00:09]} g4 {[%emt 0:00:17] ( -> ...h3)} 62. Kg2 {[%emt 0:00:20]} Kg5 {[%emt 0:00:14] Black mates.} 63. Kg1 {[%emt 0:00:04]} Ra3 {[%emt 0:00:09]} 64. Kg2 {[%emt 0:00:06]} h3+ {[%emt 0:00:06]} 65. Kg1 {[%emt 0:00:03]} g3 {[%emt 0:00:12]} 66. Rb2 {[%emt 0:06:17]} g2 {[%emt 0:08:49]} 67. Nd2 {[%emt 0:00:30]} Be3+ {[%emt 0:00:00]} 68. Kh2 {[%emt 0:00:30]} g1=Q+ {[%emt 0:00:00]} 69. Kxh3 {[%emt 0:00:00]} Bf4+ {[%emt 0:00:00]} 70. Rb3 {[%emt 0:00:00]} Qh2# {[%emt 0:02:00] Weighted Error Value: White=0.61/Black=0.26 (precise)} 0-1

[Event "3rd VIZAG GM-Open 2022"]
[Site "Visakapatnam"]
[Date "2022.06.13"]
[Round "1.6"]
[White "Mitrabha, Guha"]
[Black "Vijay, Anand M."]
[Result "1-0"]
[ECO "A35"]
[WhiteElo "2500"]
[BlackElo "1735"]
[Annotator "TA"]
[PlyCount "59"]
[EventDate "2022.06.13"]
[EventType "swiss"]
[EventCountry "IND"]
[SourceTitle "playchess.com"]
[Source "ChessBase"]
[SourceQuality "1"]
[TimeControl "5400+30"]

{[%evp 23,59,0,0,-25,27,23,56,0,64,74,64,51,65,22,79,5,80,92,150,141,157,154,194,80,62,38,199,116,314,318,618,622,2241,2277,1444,1035,2234,2148]} 1. Nf3 {[%emt 0:00:06]} Nf6 {[%emt 0:04:19]} 2. c4 {[%emt 0:00:16]} c5 {[%emt 0:00:41]} 3. Nc3 {[%emt 0:00:09]} Nc6 {[%emt 0:00:12]} 4. e3 {[%emt 0:00:34]} g6 {[%emt 0:00:39]} 5. d4 {[%emt 0:00:05]} cxd4 {[%emt 0:00:07]} 6. exd4 {[%emt 0:00:04]} d5 {[%emt 0:00:05]} 7. cxd5 {[%emt 0:00:08]} Nxd5 {[%emt 0:00:07]} 8. Qb3 {[%emt 0:00:10]} Nxc3 {[%emt 0:01:00]} 9. Bc4 {[%emt 0:00:12]} e6 {[%emt 0:00:20]} 10. bxc3 {[%emt 0:00:02]} Bg7 {[%emt 0:00:35]} 11. Ba3 {[%emt 0:00:07]} Bf8 {[%emt 1:27:55]} 12. Bc1 {[%emt 0:00:35]} Bg7 {[%emt 0:00:00]} 13. h4 {[%emt 0:00:27] A35: Symmetrical English: 2 Nc3 Nc6 3 Nf3.} h5 {[%emt 0:00:00]} (13... O-O $142) 14. Ba3 {[%emt 0:04:44] And now d5 would win.} Bf8 {[%emt 0:00:00]} 15. O-O {[%emt 0:04:30]} (15. Bd3 $14) 15... Bxa3 {[%emt 0:00:00]} ({Better is} 15... Na5 $1 $11 16. Bb5+ Bd7) 16. Qxa3 $14 {[%emt 0:00:03]} Qe7 {[%emt 0:00:00]} 17. Qc1 {[%emt 0:00:14]} O-O {[%emt 0:00:00] [#]} 18. Rb1 $146 {[%emt 0:00:45]} (18. Re1 {is interesting.} Kg7 19. Qf4 Qf6 20. Qc7) ({Predecessor:} 18. Re1 Qf6 19. Ng5 Ne7 20. Ne4 Qg7 21. Qg5 f6 22. Qf4 Nd5 23. Bxd5 exd5 24. Nd6 Qc7 25. Re3 Bf5 26. Rae1 Be4 27. g3 Rad8 28. f3 {1-0 (26) Galperin,P (2522)-Selebran,H (2094) Rochefort 2022}) 18... Qf6 {[%emt 0:00:00]} (18... b6 $11) 19. Rb5 {[%emt 0:01:46]} (19. Ng5 $1 $16) 19... Ne7 {[%emt 0:00:00]} (19... b6 $11) 20. Rg5 $16 {[%emt 0:01:31]} Bd7 {[%emt 0:00:00]} ({Black should try} 20... Qg7) 21. Ne5 {[%emt 0:00:55]} Bc6 {[%emt 0:00:00]} 22. Re1 {[%emt 0:02:10][%cal Bf1e1,Be1e3,Be3g3][%mdl 32]} Kg7 {[%emt 0:00:00] [#]} 23. Bd3 {[%emt 0:02:00]} (23. f4 $1 $18 {has better winning chances.}) 23... Rac8 {[%emt 0:06:00]} 24. Re3 {[%emt 0:08:24] 0x0.00166c6c8578dp-1022s more active pieces.} (24. Qd1 $5 {[%cal Rd1h5]}) 24... Qf4 {[%emt 0:00:00]} (24... Nf5 $1 $14) 25. Qb1 {[%emt 0:04:12]} (25. Rxh5 $18 {[%cal Og2g3] Threatens to win with g3!} Bxg2 {[#]} 26. Kxg2 $1) 25... Qxh4 {[%emt 0:00:00]} (25... Rc7 $16 {was called for.}) 26. Reg3 $18 {[%emt 0:00:17][%cal Rd3g6] Chess con chili.} Kf6 {[%emt 0:00:00] [#]} (26... Qf4 27. Bxg6 fxg6 28. Rxg6+ Kh8) 27. Bxg6 $1 {[%emt 0:06:26][%mdl 512] White is clearly winning.} Nxg6 {[%emt 0:00:28]} (27... Qxg5 28. Rxg5) 28. Rxg6+ {[%emt 0:00:50]} ({Worse is} 28. Nxg6 Be4 29. Nxh4 Bxb1 $11) 28... Ke7 {[%emt 0:00:59]} 29. Rg7 {[%emt 0:02:50][%cal Oe5f7] Intending Nxf7! and mate.} Qf4 {[%emt 0:00:56]} 30. Ng6+ {[%emt 0:00:02] Weighted Error Value: White=0.31/Black=0.73} 1-0

[Event "3rd VIZAG GM-Open 2022"]
[Site "Visakapatnam"]
[Date "2022.06.13"]
[Round "1.7"]
[White "Shounak Mazumder"]
[Black "Nikitenko, Mihail"]
[Result "1/2-1/2"]
[ECO "B17"]
[WhiteElo "1709"]
[BlackElo "2479"]
[Annotator "TA"]
[PlyCount "110"]
[EventDate "2022.06.13"]
[EventType "swiss"]
[EventCountry "IND"]
[SourceTitle "playchess.com"]
[Source "ChessBase"]
[SourceQuality "1"]
[TimeControl "5400+30"]

{[%evp 17,110,17,14,8,16,0,2,0,14,29,28,4,42,44,41,23,48,14,10,20,52,35,48,34,50,42,54,41,57,33,30,19,19,19,22,22,35,33,123,115,421,418,574,361,342,284,824,804,1842,1805,1340,1643,1597,1518,1348,831,802,748,1764,1573,12830,12831,12830,12831,12832,12832,12833,12833,12834,12835,12841,12842,12843,1264,1157,0,506,0,0,0,0,0,0,0,0,0,0,0,0,0,0,0,0,0,0]} 1. e4 {[%emt 0:00:24]} c6 {[%emt 0:00:06]} 2. Nc3 {[%emt 0:00:18]} d5 {[%emt 0:00:07]} 3. Nf3 {[%emt 0:04:55]} dxe4 {[%emt 0:00:06]} 4. Nxe4 {[%emt 0:00:07]} Nd7 {[%emt 0:00:04]} 5. d4 {[%emt 0:13:50]} Ngf6 {[%emt 0:00:05]} 6. Nxf6+ {[%emt 0:01:56]} Nxf6 {[%emt 0:00:06]} 7. Bd3 {[%emt 0:01:42]} Bg4 {[%emt 0:00:03][%cal Bc8g4,Bg4h5,Bh5g6][%mdl 32]} 8. c3 {[%emt 0:01:43]} e6 {[%emt 0:00:05]} 9. h3 {[%emt 0:03:10]} Bh5 {[%emt 0:00:06]} 10. Bf4 {[%emt 0:01:04] B17: Caro-Kann: Modern Line (4...Nd7).} Bd6 {[%emt 0:01:06]} 11. Bxd6 {[%emt 0:00:32]} Qxd6 {[%emt 0:00:04]} 12. Qe2 {[%emt 0:00:09]} O-O-O {[%emt 0:00:18]} 13. g4 {[%emt 0:30:51]} Bg6 {[%emt 0:00:06] [#]} 14. O-O-O $146 {[%emt 0:02:12]} ({Predecessor:} 14. Ne5 Bxd3 15. Nxd3 Qd5 16. f3 Nd7 17. Qe4 Qa5 18. f4 Nf6 19. Qe5 Rd5 20. Qe2 Rxd4 {0-1 (55) Eshan,B (1440)-Nikitenko,M (2479) Bhubaneswar 2022}) 14... Rhe8 {[%emt 0:01:19]} 15. Ne5 {[%emt 0:02:47]} Qc7 {[%emt 0:00:06]} 16. h4 {[%emt 0:05:18]} (16. Nxg6 hxg6 17. Qf3 Nd5 $11) 16... Nd5 {[%emt 0:00:47]} 17. h5 {[%emt 0:22:26]} Bxd3 {[%emt 0:00:05]} 18. Nxd3 {[%emt 0:00:04]} Qa5 {[%emt 0:00:07]} 19. a3 {[%emt 0:04:30]} h6 {[%emt 0:01:46]} 20. Qd2 {[%emt 0:01:35]} Re7 {[%emt 0:00:49]} 21. f4 {[%emt 0:00:48]} (21. c4 Qxd2+ 22. Rxd2 Nf6 $15) 21... Nf6 {[%emt 0:00:33]} 22. Ne5 {[%emt 0:00:32]} Rc7 {[%emt 0:01:53]} 23. g5 {[%emt 0:00:34]} Ne4 {[%emt 0:00:05][%cal Bf6e4,Be4d6,Bd6f5][%mdl 32]} 24. Qe3 {[%emt 0:00:18]} Nd6 {[%emt 0:00:04]} 25. Kb1 {[%emt 0:00:37]} Nf5 {[%emt 0:01:33]} 26. Qf2 {[%emt 0:01:08]} Qd5 {[%emt 0:00:07]} 27. Rhe1 {[%emt 0:00:00]} hxg5 {[%emt 0:01:16]} (27... Kb8 $14) 28. fxg5 $16 {[%emt 0:00:20]} Rh8 $2 {[%emt 0:00:02][%mdl 8192]} (28... Qb5 $16 {is a better chance.}) 29. c4 $18 {[%emt 0:00:38][%cal Bc3c4,Bc4c5][%mdl 32]} Qd6 {[%emt 0:04:42]} 30. g6 {[%emt 0:00:26]} fxg6 {[%emt 0:00:03]} 31. hxg6 {[%emt 0:00:20] [#] And now Nf7 would win.} Re7 {[%emt 0:02:43]} (31... Rf8 32. Nf7 Qg3 33. Qxg3 Nxg3 34. Rxe6 Nh5) 32. d5 {[%emt 0:00:43][%cal Bd4d5,Bd5d6,Bd6d7][%mdl 32]} Rh5 {[%emt 0:12:50]} 33. c5 {[%emt 0:00:31]} Qd8 {[%emt 0:00:29]} 34. d6 {[%emt 0:00:09]} Rd7 {[%emt 0:00:02]} 35. Nxd7 {[%emt 0:00:28]} Qxd7 {[%emt 0:00:02]} 36. Rxe6 {[%emt 0:00:53]} Qxe6 {[%emt 0:00:09]} 37. d7+ {[%emt 0:00:07]} Kd8 {[%emt 0:00:23]} 38. Qf4 {[%emt 0:00:12] [#] Intending Qb8+ and mate.} Nd4 {[%emt 0:00:58]} 39. Qf8+ {[%emt 0:01:08]} Kxd7 {[%emt 0:00:03]} 40. Rxd4+ {[%emt 0:00:30][%mdl 4096] Endgame KQR-KQR} Rd5 {[%emt 0:00:04]} 41. Qxg7+ {[%emt 0:00:20]} Ke8 {[%emt 0:00:04]} 42. Qh8+ {[%emt 0:00:42]} Kd7 {[%emt 0:00:13]} 43. Qh7+ {[%emt 0:00:31]} Kc8 {[%emt 0:01:49]} 44. Rxd5 {[%emt 0:00:22] White wants to mate with Qh8+.} Qxd5 {[%emt 0:00:04] KQ-KQ} 45. Qh8+ {[%emt 0:00:37]} ({And not} 45. g7 Qd1+ 46. Ka2 Qd5+ 47. b3 Qg2+ 48. Ka1 Qg1+ 49. Kb2 Qd4+ 50. Kc2 Qf2+ 51. Kd1 Qf1+ 52. Kd2 Qf2+ 53. Kd3 Qf3+ 54. Kc4 Qf7+ 55. Kd4 (55. Kc3 Qf6+ 56. Kd3 Qf3+ 57. Kd4 Qf2+ 58. Ke5 Qxc5+ 59. Kf4 Qf2+ 60. Kg5 Qd2+ 61. Kg6 Qd6+ 62. Kh5 Qh2+ 63. Kg6 Qd6+ 64. Kg5 Qg3+ 65. Kh6 Qh2+ 66. Kg6 Qd6+ $11) 55... Qf2+ 56. Ke5 Qxc5+ 57. Ke6 Qd5+ 58. Ke7 Qd8+ 59. Kf7 Qd7+ 60. Kf6 Qd4+ 61. Kg5 Qd2+ 62. Kg4 Qg2+ 63. Kh5 (63. Kf4 Qf2+ 64. Ke5 Qg3+ 65. Ke6 Qg4+ 66. Ke7 Qd7+ 67. Kf8 Qd8+ 68. Kf7 Qd7+ 69. Kf6 Qd4+ 70. Kg6 Qd3+ 71. Kh6 Qe3+ 72. Kh5 Qh3+ 73. Kg6 Qd3+ 74. Kh6 Qh3+ 75. Kg6 Qd3+ $11) 63... Qh3+ 64. Kg6 Qd3+ 65. Kh6 Qe3+ 66. Kh5 Qh3+ 67. Kg6 Qd3+ 68. Kh6 Qh3+ 69. Kg6 $11) (45. Qf7 $142 Qxc5 46. g7) 45... Kd7 {[%emt 0:00:03]} 46. Qh7+ $2 {[%emt 0:00:29]} (46. Qg7+ $18 Ke8 47. Qxb7) 46... Ke8 $2 {[%emt 0:00:07][%mdl 8192]} (46... Kc8 $11 {and Black is okay.}) 47. g7 $2 {[%emt 0:00:22]} (47. Qxb7 $18 Kf8 48. Qb8+ (48. Qxa7 Qd1+ 49. Ka2 Qd5+ 50. b3 Qd2+ 51. Kb1 Qd1+ 52. Kb2 Qd2+ 53. Kb1 Qd1+ 54. Kb2 Qd2+ 55. Kb1 $11) 48... Kg7 49. Qxa7+ Kxg6 50. Qa4) 47... Qd1+ $11 {[%emt 0:00:06] The position is equal.} 48. Ka2 {[%emt 0:00:03][%cal Rg7g8]} Qd5+ {[%emt 0:00:03]} 49. b3 {[%emt 0:00:22]} Qd2+ {[%emt 1:17:09]} 50. Kb1 {[%emt 0:00:44][%cal Rg7g8]} Qd1+ {[%emt 0:00:00]} 51. Kb2 {[%emt 0:00:31][%cal Rg7g8]} Qd2+ {[%emt 0:00:00]} 52. Kb1 {[%emt 0:00:57][%cal Rg7g8]} Qd1+ {[%emt 0:00:00]} 53. Kb2 {[%emt 0:00:32][%cal Rg7g8]} Qd2+ {[%emt 0:00:00]} 54. Qc2 {[%emt 0:00:32]} Qxc2+ {[%emt 0:00:00]} 55. Kxc2 {[%emt 0:00:03]} Kf7 {[%emt 0:00:00] Blacks defense is rewarded with a draw.  Weighted Error Value: White=0.62/Black=0.59} 1/2-1/2

[Event "3rd VIZAG GM-Open 2022"]
[Site "Visakapatnam"]
[Date "2022.06.13"]
[Round "1.8"]
[White "Nigmatov, Ortik"]
[Black "Abhinav, Chakrapani Santhalay"]
[Result "1-0"]
[ECO "C10"]
[WhiteElo "2463"]
[BlackElo "1712"]
[Annotator "TA"]
[PlyCount "45"]
[EventDate "2022.06.13"]
[EventType "swiss"]
[EventCountry "IND"]
[SourceTitle "playchess.com"]
[Source "ChessBase"]
[SourceQuality "1"]
[TimeControl "5400+30"]

{[%evp 11,45,35,31,19,18,2,7,0,-14,0,0,0,0,0,0,0,5,0,16,9,0,0,406,403,389,397,385,383,557,528,1487,1469,1457,1450,1343,1175]} 1. e4 {[%emt 0:00:04]} e6 {[%emt 0:00:13]} 2. d4 {[%emt 0:00:10]} d5 {[%emt 0:00:11]} 3. Nc3 {[%emt 0:00:11]} dxe4 {[%emt 0:00:57]} 4. Nxe4 {[%emt 0:00:07]} Nd7 {[%emt 0:00:25]} 5. Nf3 {[%emt 0:00:55]} Ngf6 {[%emt 0:01:14]} 6. Nxf6+ {[%emt 0:03:50]} Nxf6 {[%emt 0:00:37]} 7. a4 {[%emt 0:02:47] [#] 7.c3 is the modern continuation. C10: French with 3 Nc3: Unusual Black 3rd moves and 3...dxe4.} c5 $146 {[%emt 0:13:27]} ({Predecessor:} 7... Be7 8. g3 Bd7 9. Ne5 Bc6 10. Nxc6 bxc6 11. Bg2 Nd5 12. O-O O-O 13. h4 Rb8 14. a5 Bf6 {1-0 (41) Paravyan,D (2617)-Timofeev,A (2574) Sochi 2022}) 8. Bg5 {[%emt 0:05:20]} cxd4 {[%emt 0:02:56]} 9. Bxf6 {[%emt 0:12:02] The position is equal.} gxf6 {[%emt 0:01:05]} 10. Nxd4 {[%emt 0:02:22]} a6 {[%emt 0:07:41] Prevents Bb5+.} 11. Bd3 {[%emt 0:03:14]} h5 {[%emt 0:12:22]} (11... Qxd4 $2 12. Bb5+ $1 {[%mdl 512]} Qd7 13. Bxd7+ $18) 12. O-O {[%emt 0:00:44]} Bc5 {[%emt 0:04:36]} (12... Qxd4 $2 13. Bb5+ $1 {[%mdl 512]} Qd7 14. Bxd7+ $18) 13. c3 {[%emt 0:01:07]} Qc7 {[%emt 0:13:46]} 14. Qf3 {[%emt 0:01:22]} Be7 {[%emt 0:04:38]} 15. Rfe1 {[%emt 0:03:31]} Bd7 {[%emt 0:05:09]} 16. b4 {[%emt 0:03:31]} Qxc3 $2 {[%emt 0:14:12][%mdl 8192] [#]} (16... Rd8 $11) 17. Nxe6 $1 $18 {[%emt 0:01:19][%cal Bd4e6,Be6f4,Bf4g6][%mdl 544]} Rc8 {[%emt 0:09:26]} (17... Bxe6 $2 {[#]} 18. Bb5+ $1 {[%mdl 512]} axb5 19. Qxc3 $18) 18. Nf4 {[%emt 0:13:47][%cal Oe1e7] Strongly threatening Rxe7+!} ({Much less strong is} 18. Nc5 Bc6 19. Qf4 Rd8 $18) 18... Bc6 {[%emt 0:00:44]} 19. Qh3 {[%emt 0:00:15][%cal Rh3c8]} Rd8 {[%emt 0:00:39] [#]} (19... Kd8 {is a better defense.} 20. Rac1 Bd7) 20. Ng6 $1 {[%emt 0:01:04][%csl Gg6][%cal Re1e7][%mdl 512] White is clearly winning.} Be4 {[%emt 0:02:15][%cal Od8d3]} (20... Qxa1 21. Rxa1) 21. Bb5+ {[%emt 0:01:42]} axb5 {[%emt 0:00:10]} 22. Qxc3 {[%emt 0:00:05]} Bxg6 {[%emt 0:00:18]} 23. Qxf6 {[%emt 0:00:08] Weighted Error Value: White=0.02 (flawless) /Black=0.66} 1-0

[Event "3rd VIZAG GM-Open 2022"]
[Site "Visakapatnam"]
[Date "2022.06.13"]
[Round "1.9"]
[White "Baidya, Kaushik"]
[Black "Stupak, Kirill"]
[Result "0-1"]
[ECO "B13"]
[WhiteElo "1702"]
[BlackElo "2440"]
[Annotator "RC"]
[PlyCount "88"]
[EventDate "2022.06.13"]
[EventType "swiss"]
[EventCountry "IND"]
[SourceTitle "playchess.com"]
[Source "ChessBase"]
[SourceQuality "1"]
[TimeControl "5400+30"]

1. e4 {[%emt 0:00:09]} c6 {[%emt 0:00:03]} 2. d4 {[%emt 0:00:51]} d5 {[%emt 0:00:02]} 3. exd5 {[%emt 0:00:43]} cxd5 {[%emt 0:00:02]} 4. Bd3 {[%emt 0:00:32]} Nc6 {[%emt 0:00:04]} 5. c3 {[%emt 0:00:33]} Nf6 {[%emt 0:00:04]} 6. Bg5 {[%emt 0:02:17]} Bg4 {[%emt 0:00:23]} 7. Nf3 {[%emt 0:01:11]} e6 {[%emt 0:00:46]} 8. Nbd2 {[%emt 0:00:13]} Bd6 {[%emt 0:00:08]} 9. h3 {[%emt 0:00:20]} Bh5 {[%emt 0:00:02]} 10. O-O {[%emt 0:02:25]} Qc7 {[%emt 0:00:35]} 11. Qc2 {[%emt 0:01:21]} Nd7 {[%emt 0:01:21]} 12. a3 {[%emt 0:01:46]} h6 {[%emt 0:00:51]} 13. Be3 {[%emt 0:00:13]} Ne7 {[%emt 0:01:41]} 14. c4 {[%emt 0:03:48]} dxc4 {[%emt 0:00:21]} 15. Qxc4 {[%emt 0:00:57]} O-O {[%emt 0:01:42]} 16. Qxc7 {[%emt 0:01:45]} Bxc7 {[%emt 0:00:01]} 17. Rac1 {[%emt 0:02:13]} Rac8 {[%emt 0:01:16]} 18. Rc2 {[%emt 0:00:46]} Bb8 {[%emt 1:30:08]} 19. Rfc1 {[%emt 0:00:21]} Rcd8 {[%emt 0:00:00]} 20. g4 {[%emt 0:02:32]} Bg6 {[%emt 0:00:00]} 21. Bxg6 {[%emt 0:00:37]} Nxg6 {[%emt 0:00:00]} 22. Nc4 {[%emt 0:05:21]} Nf4 {[%emt 0:00:00]} 23. h4 {[%emt 0:02:21]} b6 {[%emt 0:00:00]} 24. Nce5 {[%emt 0:03:05]} Nxe5 {[%emt 0:00:00]} 25. Nxe5 {[%emt 0:00:12]} Bxe5 {[%emt 0:00:00]} 26. dxe5 {[%emt 0:00:47]} Nd3 {[%emt 0:00:00]} 27. Rd1 {[%emt 0:03:32]} Nxe5 {[%emt 0:00:00]} 28. Rxd8 {[%emt 0:00:17]} Rxd8 {[%emt 0:00:00]} 29. Rc7 {[%emt 0:04:06]} Nxg4 {[%emt 0:00:00]} 30. Rxa7 {[%emt 0:05:00]} Rd1+ {[%emt 0:00:00]} 31. Kg2 {[%emt 0:00:22]} Nxe3+ {[%emt 0:00:00]} 32. fxe3 {[%emt 0:00:30]} Rd2+ {[%emt 0:00:00]} 33. Kf3 {[%emt 0:00:17]} Rxb2 {[%emt 0:00:00]} 34. a4 {[%emt 0:02:24]} Rb4 {[%emt 0:00:00]} 35. Kg3 {[%emt 0:00:35]} Re4 {[%emt 0:00:00]} 36. Ra6 {[%emt 0:03:01]} Rxe3+ {[%emt 0:00:00]} 37. Kf4 {[%emt 0:00:10]} Rb3 {[%emt 0:00:00]} 38. a5 {[%emt 0:00:24]} bxa5 {[%emt 0:00:00]} 39. Rxa5 {[%emt 0:00:03]} g6 {[%emt 0:00:00]} 40. Ke5 {[%emt 0:01:35]} Rb4 {[%emt 0:00:00]} 41. Kf6 {[%emt 0:00:15]} Rf4+ {[%emt 0:00:00]} 42. Ke7 {[%emt 0:00:09]} Rxh4 {[%emt 0:00:00]} 43. Ra8+ {[%emt 0:00:06]} Kg7 {[%emt 0:00:00]} 44. Rf8 {[%emt 0:00:12]} Rf4 {[%emt 0:00:00]} 0-1